fUSD/lending_fUSD_20240615
["ID","MTS","AMOUNT","RATE_DAILY","PERIOD"]
[329529648,1718417567065,-1983.64,0.00026301,3]
[329529649,1718417567077,-768.32,0.00026301,3]
[329529650,1718417567088,-5336.34,0.00026301,3]
[329529651,1718417567100,-822.64,0.00026301,3]
[329529652,1718417567115,-417.77,0.00026319,2]
[329529653,1718417567127,-835.54,0.00026319,2]
[329529654,1718417567142,-150.28398385,0.00026328,2]
[329529655,1718417567156,-153.91472008,0.00026382,2]
[329529656,1718417567168,-151.37127213,0.0002639,2]
[329529657,1718417567179,-666.73,0.000264,2]
[329529658,1718417567214,-796.80049729,0.000264,2]
[329529659,1718417567234,-589.22763664,0.00026401,2]
[329529660,1718417567251,-486.98987655,0.00026475,2]
[329529661,1718417567263,-151.0,0.00026479,2]
[329529662,1718417567278,-589.22763664,0.00026538,2]
[329529663,1718417567291,-589.22763664,0.00026574,2]
[329529664,1718417567302,-500.0,0.00026575,3]
[329529665,1718417567313,-668.77,0.00026575,3]
[329529666,1718417567333,-500.0,0.00026575,3]
[329529667,1718417567349,-558.89,0.00026575,3]
[329529668,1718417567370,-607.69,0.00026575,3]
[329529669,1718417567388,-785.34,0.00026575,3]
[329529670,1718417567409,-152.26065047,0.00026575,3]
[329529671,1718417567422,-477.99296833,0.00026575,3]
[329529672,1718417567452,-507.65,0.00026575,3]
[329529673,1718417567468,-500.0,0.00026575,3]
[329529674,1718417567483,-515.84,0.00026575,3]
[329529675,1718417567497,-500.0,0.00026575,3]
[329529676,1718417567508,-528.13369055,0.00026575,3]
[329529677,1718417567522,-501.07,0.00026575,3]
[329529678,1718417567551,-672.79,0.00026575,3]
[329529679,1718417567570,-500.0,0.00026575,3]
[329529680,1718417567595,-500.0,0.00026575,3]
[329529681,1718417567615,-870.98,0.00026575,3]
[329529682,1718417567629,-668.73,0.00026575,3]
[329529683,1718417567668,-302.08,0.00026575,3]
[329529684,1718417567685,-1385.03,0.00026575,3]
[329529685,1718417567704,-545.94,0.00026575,3]
[329529686,1718417567719,-728.36,0.00026575,3]
[329529687,1718417567731,-888.58,0.00026575,3]
[329529688,1718417567757,-682.82,0.00026575,3]
[329529689,1718417567772,-532.27,0.00026575,3]
[329529690,1718417567783,-4841.14,0.00026575,3]
[329529691,1718417567803,-606.39,0.00026575,3]
[329529692,1718417567815,-500.0,0.00026575,3]
[329529693,1718417567841,-856.26,0.00026575,3]
[329529694,1718417567857,-500.0,0.00026575,3]
[329529695,1718417567880,-305.28318797,0.00026575,3]
[329529696,1718417567893,-506.1,0.00026575,3]
[329529697,1718417567906,-724.3,0.00026575,3]
[329529698,1718417567918,-531.35,0.00026575,3]
[329529699,1718417567932,-813.58,0.00026575,3]
[329529700,1718417567944,-500.0,0.00026575,3]
[329529701,1718417567957,-500.0,0.00026575,3]
[329529702,1718417567970,-500.0,0.00026575,3]
[329529703,1718417567982,-519.65,0.00026575,3]
[329529704,1718417567992,-515.24,0.00026575,3]
[329529705,1718417568004,-778.57,0.00026575,3]
[329529706,1718417568028,-614.81588895,0.00026575,3]
[329529707,1718417568040,-1047.51,0.00026575,3]
[329529708,1718417568051,-903.22,0.00026575,3]
[329529709,1718417568063,-746.57,0.00026575,3]
[329529710,1718417568075,-639.11,0.00026575,3]
[329529711,1718417568087,-777.96,0.00026575,3]
[329529712,1718417568112,-803.6,0.00026575,3]
[329529713,1718417568127,-2432.85,0.00026575,3]
[329529714,1718417568138,-3528.32,0.00026575,3]
[329529715,1718417568153,-559.3,0.00026575,3]
[329529716,1718417568165,-518.99,0.00026575,3]
[329529717,1718417568180,-626.24,0.00026575,3]
[329529718,1718417568191,-500.0,0.00026575,3]
[329529719,1718417568208,-2169.8,0.00026575,3]
[329529720,1718417568224,-1397.37,0.00026575,3]
[329529721,1718417568253,-1812.96,0.00026575,3]
[329529722,1718417568266,-1116.08,0.00026575,3]
[329529723,1718417568305,-2203.0,0.00026575,3]
[329529724,1718417568324,-2898.04,0.00026575,3]
[329529725,1718417568351,-1318.8,0.00026575,3]
[329529726,1718417568384,-500.0,0.00026575,3]
[329529727,1718417568395,-1088.26,0.00026575,3]
[329529728,1718417568408,-1288.4,0.00026575,3]
[329529729,1718417568437,-7905.56,0.00026575,3]
[329529730,1718417568449,-500.0,0.00026575,3]
[329529731,1718417568473,-974.3,0.00026575,3]
[329529732,1718417568486,-771.35,0.00026575,3]
[329529733,1718417568500,-2138.1,0.00026575,3]
[329529734,1718417568517,-691.68,0.00026575,3]
[329529735,1718417568532,-3270.81,0.00026575,3]
[329529736,1718417568558,-500.0,0.00026575,3]
[329529737,1718417568582,-713.64,0.00026575,3]
[329529738,1718417568603,-599.22,0.00026575,3]
[329529739,1718417568624,-500.0,0.00026575,3]
[329529740,1718417568647,-523.84,0.00026575,3]
[329529741,1718417568663,-1195.79,0.00026575,3]
[329529742,1718417568686,-500.0,0.00026575,3]
[329529743,1718417568700,-1341.44,0.00026575,3]
[329529744,1718417568721,-1129.63,0.00026575,3]
[329529745,1718417568747,-500.0,0.00026575,3]
[329529746,1718417568768,-1346.88,0.00026575,3]
[329529747,1718417568790,-500.0,0.00026575,3]
[329529748,1718417568803,-3501.23,0.00026575,3]
[329529749,1718417568844,-516.84,0.00026575,3]
[329529750,1718417568872,-1291.54,0.00026575,3]
[329529751,1718417568895,-809.78,0.00026575,3]
[329529752,1718417568947,-500.0,0.00026575,3]
[329529753,1718417568971,-923.8,0.00026575,3]
[329529754,1718417569005,-1654.95,0.00026575,3]
[329529755,1718417569025,-4144.87,0.00026575,3]
[329529756,1718417569050,-2305.21,0.00026575,3]
[329529757,1718417569095,-1983.64,0.00026575,3]
[329529758,1718417569131,-768.32,0.00026575,3]
[329529759,1718417569154,-151.0,0.00026575,7]
[329529760,1718417569191,-151.0,0.00026575,7]
[329529761,1718417569204,-156.269501,0.00026575,7]
[329529762,1718417569220,-152.0,0.000266,3]
[329529763,1718417569232,-180.79515138,0.00026606,2]
[329529764,1718417569251,-150.28398385,0.00026617,2]
[329529765,1718417569265,-589.22763664,0.00026653,2]
[329529766,1718417569310,-170.31725903,0.0002668,2]
[329529767,1718417569345,-151.93663712,0.00026686,2]
[329529768,1718417569366,-151.93663712,0.00026689,2]
[329529769,1718417569382,-589.22763664,0.00026714,2]
[329529770,1718417569397,-153.6481927,0.00026725,2]
[329529771,1718417569423,-151.37127213,0.00026772,2]
[329529772,1718417569438,-170.31725903,0.00026775,2]
[329529773,1718417569458,-150.0246704,0.00026777,2]
[329529774,1718417569472,-285.91,0.000268,2]
[329529775,1718417569486,-166.0,0.000268,2]
[329529776,1718417569506,-5311.11899323,0.000268,2]
[329529777,1718417569518,-486.98987655,0.00026803,2]
[329529778,1718417569530,-153.06091491,0.00026806,2]
[329529779,1718417569546,-153.58284453,0.00026811,2]
[329529780,1718417569557,-150.0246704,0.00026847,2]
[329529781,1718417569574,-500.0,0.00026849,3]
[329529782,1718417569588,-668.77,0.00026849,3]
[329529783,1718417569603,-498.56682441,0.00026849,3]
[329529784,1718417569619,-558.89,0.00026849,3]
[329529785,1718417569632,-607.69,0.00026849,3]
[329529786,1718417569646,-785.34,0.00026849,3]
[329529787,1718417569659,-507.65,0.00026849,3]
[329529788,1718417569680,-500.0,0.00026849,3]
[329529789,1718417569697,-515.84,0.00026849,3]
[329529790,1718417569730,-500.0,0.00026849,3]
[329529791,1718417569748,-501.07,0.00026849,3]
[329529792,1718417569767,-672.79,0.00026849,3]
[329529793,1718417569795,-337.04081104,0.00026849,3]
[329529794,1718417569812,-500.0,0.00026849,3]
[329529795,1718417569830,-870.98,0.00026849,3]
[329529796,1718417569854,-668.73,0.00026849,3]
[329529797,1718417569871,-1385.03,0.00026849,3]
[329529798,1718417569885,-545.94,0.00026849,3]
[329529799,1718417569896,-728.36,0.00026849,3]
[329529800,1718417569909,-888.58,0.00026849,3]
[329529801,1718417569921,-682.82,0.00026849,3]
[329529802,1718417569934,-532.27,0.00026849,3]
[329529803,1718417569967,-4841.14,0.00026849,3]
[329529804,1718417570008,-606.39,0.00026849,3]
[329529805,1718417570024,-500.0,0.00026849,3]
[329529806,1718417570064,-856.26,0.00026849,3]
[329529807,1718417570095,-500.0,0.00026849,3]
[329529808,1718417570121,-506.1,0.00026849,3]
[329529809,1718417570138,-724.3,0.00026849,3]
[329529810,1718417570156,-531.35,0.00026849,3]
[329529811,1718417570180,-813.58,0.00026849,3]
[329529812,1718417570205,-500.0,0.00026849,3]
[329529813,1718417570219,-500.0,0.00026849,3]
[329529814,1718417570230,-500.0,0.00026849,3]
[329529815,1718417570245,-519.65,0.00026849,3]
[329529816,1718417570274,-515.24,0.00026849,3]
[329529817,1718417570292,-778.57,0.00026849,3]
[329529818,1718417570326,-1047.51,0.00026849,3]
[329529819,1718417570489,-903.22,0.00026849,3]
[329529820,1718417570502,-746.57,0.00026849,3]
[329529821,1718417570520,-639.11,0.00026849,3]
[329529822,1718417570554,-777.96,0.00026849,3]
[329529823,1718417570599,-803.6,0.00026849,3]
[329529824,1718417570625,-2432.85,0.00026849,3]
[329529825,1718417570653,-3528.32,0.00026849,3]
[329529826,1718417570696,-559.3,0.00026849,3]
[329529827,1718417570717,-518.99,0.00026849,3]
[329529828,1718417570736,-626.24,0.00026849,3]
[329529829,1718417570751,-500.0,0.00026849,3]
[329529830,1718417570765,-2169.8,0.00026849,3]
[329529831,1718417570782,-1397.37,0.00026849,3]
[329529832,1718417570811,-1812.96,0.00026849,3]
[329529833,1718417570840,-1116.08,0.00026849,3]
[329529834,1718417570866,-2203.0,0.00026849,3]
[329529835,1718417570894,-2898.04,0.00026849,3]
[329529836,1718417570913,-1318.8,0.00026849,3]
[329529837,1718417570941,-500.0,0.00026849,3]
[329529838,1718417570958,-1088.26,0.00026849,3]
[329529839,1718417570973,-1288.4,0.00026849,3]
[329529840,1718417570993,-7905.56,0.00026849,3]
[329529841,1718417571005,-267.73542931,0.00026849,3]
[329529842,1718417571031,-974.3,0.00026849,3]
[329529843,1718417571072,-771.35,0.00026849,3]
[329529844,1718417571111,-2138.1,0.00026849,3]
[329529845,1718417571133,-691.68,0.00026849,3]
[329529846,1718417571157,-3270.81,0.00026849,3]
[329529847,1718417571172,-500.0,0.00026849,3]
[329529848,1718417571196,-713.64,0.00026849,3]
[329529849,1718417571211,-590.96933973,0.00026849,3]
[329529850,1718417571223,-599.22,0.00026849,3]
[329529851,1718417571246,-523.84,0.00026849,3]
[329529852,1718417571259,-1195.79,0.00026849,3]
[329529853,1718417571277,-500.0,0.00026849,3]
[329529854,1718417571288,-1341.44,0.00026849,3]
[329529855,1718417571315,-1129.63,0.00026849,3]
[329529856,1718417571335,-592.37805192,0.00026849,3]
[329529857,1718417571348,-1346.88,0.00026849,3]
[329529858,1718417571361,-500.0,0.00026849,3]
[329529859,1718417571383,-3501.23,0.00026849,3]
[329529860,1718417571399,-516.84,0.00026849,3]
[329529861,1718417571415,-1291.54,0.00026849,3]
[329529862,1718417571431,-809.78,0.00026849,3]
[329529863,1718417571449,-500.0,0.00026849,3]
[329529864,1718417571486,-923.8,0.00026849,3]
[329529865,1718417571498,-1654.95,0.00026849,3]
[329529866,1718417571510,-4144.87,0.00026849,3]
[329529867,1718417571521,-2305.21,0.00026849,3]
[329529868,1718417571532,-1983.64,0.00026849,3]
[329529869,1718417571555,-768.32,0.00026849,3]
[329529870,1718417571570,-486.98987655,0.00026866,2]
[329529871,1718417571581,-589.22763664,0.00026866,2]
[329529872,1718417571596,-154.16302203,0.00026882,2]
[329529873,1718417571624,-170.31725903,0.00026891,2]
[329529874,1718417571637,-156.64035792,0.00026911,2]
[329529875,1718417571649,-150.0246704,0.00026929,2]
[329529876,1718417571661,-300.0,0.00026933,2]
[329529877,1718417571673,-151.11717052,0.00026968,2]
[329529878,1718417571688,-500.0,0.00026984,2]
[329529879,1718417571700,-500.0,0.00026992,2]
[329529880,1718417571714,-295.0,0.00027,2]
[329529881,1718417571741,-20100.0,0.00027,2]
[329529882,1718417571753,-1400.0,0.00027,2]
[329529883,1718417571778,-1800.0,0.00027,28]
[329529884,1718417571800,-150.0,0.00027,2]
[329529885,1718417571815,-241.22432261,0.00027,4]
[329529886,1718417571835,-500.0,0.00027001,2]
[329529887,1718417571849,-500.0,0.00027001,2]
[329529888,1718417571859,-500.0,0.0002701,2]
[329529889,1718417571870,-500.0,0.0002701,2]
[329529890,1718417571882,-151.37127213,0.00027033,2]
[329529891,1718417571894,-150.0246704,0.00027038,2]
[329529892,1718417571905,-155.86084039,0.00027055,2]
[329529893,1718417571916,-150.28398385,0.000271,2]
[329529894,1718417571929,-1008.0,0.000271,2]
[329529895,1718417571940,-4909.24,0.00027122,2]
[329529896,1718417571954,-467.85512891,0.00027123,3]
[329529897,1718417571969,-668.77,0.00027123,3]
[329529898,1718417571984,-558.89,0.00027123,3]
[329529899,1718417571998,-607.69,0.00027123,3]
[329529900,1718417572010,-785.34,0.00027123,3]
[329529901,1718417572021,-507.65,0.00027123,3]
[329529902,1718417572036,-497.96170407,0.00027123,3]
[329529903,1718417572049,-515.84,0.00027123,3]
[329529904,1718417572060,-500.0,0.00027123,3]
[329529905,1718417572071,-501.07,0.00027123,3]
[329529906,1718417572083,-672.79,0.00027123,3]
[329529907,1718417572095,-500.0,0.00027123,3]
[329529908,1718417572116,-870.98,0.00027123,3]
[329529909,1718417572142,-668.73,0.00027123,3]
[329529910,1718417572153,-1385.03,0.00027123,3]
[329529911,1718417572166,-545.94,0.00027123,3]
[329529912,1718417572178,-728.36,0.00027123,3]
[329529913,1718417572202,-888.58,0.00027123,3]
[329529914,1718417572215,-682.82,0.00027123,3]
[329529915,1718417572226,-532.27,0.00027123,3]
[329529916,1718417572237,-2014.35409448,0.00027123,3]
[329529917,1718417572656,-205.90546,0.00021917,2]
[329529918,1718417572669,-5336.34,0.00026575,3]
[329529919,1718417572687,-822.64,0.00026575,3]
[329529920,1718417572700,-5336.34,0.00026849,3]
[329529921,1718417572722,-822.64,0.00026849,3]
[329529922,1718417572744,-2826.78590552,0.00027123,3]
[329529923,1718417572777,-606.39,0.00027123,3]
[329529924,1718417572808,-158.19310799,0.00027123,3]
[329529925,1718417572822,-856.26,0.00027123,3]
[329529926,1718417572834,-531.52,0.00027123,3]
[329529927,1718417572847,-506.1,0.00027123,3]
[329529928,1718417572860,-724.3,0.00027123,3]
[329529929,1718417572871,-531.35,0.00027123,3]
[329529930,1718417572883,-813.58,0.00027123,3]
[329529931,1718417572895,-500.0,0.00027123,3]
[329529932,1718417572906,-500.0,0.00027123,3]
[329529933,1718417572927,-500.0,0.00027123,3]
[329529934,1718417572944,-519.65,0.00027123,3]
[329529935,1718417572967,-515.24,0.00027123,3]
[329529936,1718417572983,-778.57,0.00027123,3]
[329529937,1718417572996,-1047.51,0.00027123,3]
[329529938,1718417573009,-903.22,0.00027123,3]
[329529939,1718417573022,-746.57,0.00027123,3]
[329529940,1718417573041,-639.11,0.00027123,3]
[329529941,1718417573062,-777.96,0.00027123,3]
[329529942,1718417573077,-803.6,0.00027123,3]
[329529943,1718417573092,-2432.85,0.00027123,3]
[329529944,1718417573134,-3528.32,0.00027123,3]
[329529945,1718417573146,-559.3,0.00027123,3]
[329529946,1718417573158,-518.99,0.00027123,3]
[329529947,1718417573173,-626.24,0.00027123,3]
[329529948,1718417573186,-355.29001628,0.00027123,3]
[329529949,1718417573198,-2169.8,0.00027123,3]
[329529950,1718417573211,-1397.37,0.00027123,3]
[329529951,1718417573229,-1812.96,0.00027123,3]
[329529952,1718417573243,-1116.08,0.00027123,3]
[329529953,1718417573268,-2203.0,0.00027123,3]
[329529954,1718417573288,-2898.04,0.00027123,3]
[329529955,1718417573304,-1318.8,0.00027123,3]
[329529956,1718417573316,-500.0,0.00027123,3]
[329529957,1718417573328,-1088.26,0.00027123,3]
[329529958,1718417573339,-1288.4,0.00027123,3]
[329529959,1718417573352,-7905.56,0.00027123,3]
[329529960,1718417573367,-974.3,0.00027123,3]
[329529961,1718417573380,-771.35,0.00027123,3]
[329529962,1718417573404,-691.68,0.00027123,3]
[329529963,1718417573426,-2138.1,0.00027123,3]
[329529964,1718417573439,-3270.81,0.00027123,3]
[329529965,1718417573455,-500.0,0.00027123,3]
[329529966,1718417573466,-713.64,0.00027123,3]
[329529967,1718417573477,-599.22,0.00027123,3]
[329529968,1718417573491,-523.84,0.00027123,3]
[329529969,1718417573501,-1195.79,0.00027123,3]
[329529970,1718417573512,-500.0,0.00027123,3]
[329529971,1718417573522,-1341.44,0.00027123,3]
[329529972,1718417573533,-1129.63,0.00027123,3]
[329529973,1718417573544,-1346.88,0.00027123,3]
[329529974,1718417573554,-500.0,0.00027123,3]
[329529975,1718417573564,-3501.23,0.00027123,3]
[329529976,1718417573576,-516.84,0.00027123,3]
[329529977,1718417573586,-1291.54,0.00027123,3]
[329529978,1718417573598,-809.78,0.00027123,3]
[329529979,1718417573624,-500.0,0.00027123,3]
[329529980,1718417573636,-923.8,0.00027123,3]
[329529981,1718417573652,-1654.95,0.00027123,3]
[329529982,1718417573667,-4144.87,0.00027123,3]
[329529983,1718417573681,-2305.21,0.00027123,3]
[329529984,1718417573694,-1983.64,0.00027123,3]
[329529985,1718417573710,-768.32,0.00027123,3]
[329529986,1718417573729,-301.05,0.00027141,2]
[329529987,1718417573741,-331.59,0.00027141,2]
[329529988,1718417573755,-713.52,0.00027141,2]
[329529989,1718417573766,-150.0,0.00027141,2]
[329529990,1718417573778,-353.74,0.00027141,2]
[329529991,1718417573789,-153.06091491,0.00027167,2]
[329529992,1718417573804,-150.0246704,0.00027169,2]
[329529993,1718417573821,-486.98987655,0.00027192,2]
[329529994,1718417573831,-3866.35173217,0.000272,2]
[329529995,1718417573844,-1000.0,0.000272,2]
[329529996,1718417573856,-997.04,0.0002721,2]
[329529997,1718417573866,-156.43485649,0.00027213,4]
[329529998,1718417573878,-150.0246704,0.00027244,2]
[329529999,1718417573890,-150.28398385,0.00027261,2]
[329530000,1718417573902,-153.58284456,0.00027274,2]
[329530001,1718417573915,-166.66666668,0.00027281,2]
[329530002,1718417573926,-151.37127213,0.00027308,2]
[329530003,1718417573938,-150.0246704,0.00027314,2]
[329530004,1718417573964,-150.28398385,0.00027323,2]
[329530005,1718417573989,-150.28398385,0.00027324,2]
[329530006,1718417574012,-1056.49181,0.0002735,2]
[329530007,1718417574025,-160.83630714,0.00027359,2]
[329530008,1718417574037,-156.64035792,0.00027379,2]
[329530009,1718417574047,-500.0,0.00027379,2]
[329530010,1718417574060,-677.2553974,0.00027383,2]
[329530011,1718417574071,-500.0,0.00027388,2]
[329530012,1718417574082,-500.0,0.00027397,2]
[329530013,1718417574093,-160.0,0.00027397,2]
[329530014,1718417574104,-416.97375969,0.00027397,2]
[329530015,1718417574116,-500.0,0.00027397,2]
[329530016,1718417574130,-668.77,0.00027397,3]
[329530017,1718417574143,-150.0,0.00027397,2]
[329530018,1718417574156,-558.89,0.00027397,3]
[329530019,1718417574168,-607.69,0.00027397,3]
[329530020,1718417574308,-785.34,0.00027397,3]
[329530021,1718417574333,-507.65,0.00027397,3]
[329530022,1718417574354,-515.84,0.00027397,3]
[329530023,1718417574378,-324.32657404,0.00027397,3]
[329530024,1718417574395,-501.07,0.00027397,3]
[329530025,1718417574439,-672.79,0.00027397,3]
[329530026,1718417574479,-500.0,0.00027397,3]
[329530027,1718417574494,-870.98,0.00027397,3]
[329530028,1718417574511,-668.73,0.00027397,3]
[329530029,1718417574527,-1385.03,0.00027397,3]
[329530030,1718417574549,-545.94,0.00027397,3]
[329530031,1718417574561,-728.36,0.00027397,3]
[329530032,1718417574575,-888.58,0.00027397,3]
[329530033,1718417574588,-682.82,0.00027397,3]
[329530034,1718417574602,-532.27,0.00027397,3]
[329530035,1718417574622,-4841.14,0.00027397,3]
[329530036,1718417574648,-606.39,0.00027397,3]
[329530037,1718417574666,-856.26,0.00027397,3]
[329530038,1718417574679,-506.1,0.00027397,3]
[329530039,1718417574697,-724.3,0.00027397,3]
[329530040,1718417574711,-531.35,0.00027397,3]
[329530041,1718417574723,-813.58,0.00027397,3]
[329530042,1718417574735,-500.0,0.00027397,3]
[329530043,1718417574748,-500.0,0.00027397,3]
[329530044,1718417574762,-465.27940434,0.00027397,3]
[329530045,1718417574783,-519.65,0.00027397,3]
[329530046,1718417574805,-145.85841966,0.00027397,3]
[329530048,1718417826031,427.4,0.00024329,30]
[329530051,1718418367667,391.78,0.00024329,30]
[329530053,1718418429179,-155.0,0.00013487,2]
[329530054,1718418429210,-145.66127472,0.00013488,2]
[329530056,1718418567217,-155.0,0.00013482,2]
[329530057,1718418567249,-364.40324563,0.00013483,2]
[329530058,1718418567276,-166.73848691,0.00013488,2]
[329530066,1718418633580,-681.30421136,0.00013488,2]
[329530067,1718418633664,-1088.42612992,0.00013488,2]
[329530068,1718418633700,-888.5670118,0.00013488,2]
[329530069,1718418633730,-430.0884673,0.00013489,2]
[329530070,1718418633743,-535.80783798,0.0001349,2]
[329530071,1718418633757,-155.0,0.00013535,2]
[329530072,1718418633812,-5184.77372014,0.00013537,2]
[329530073,1718418633836,-149.65269182,0.00016711,2]
[329530074,1718418633851,-70.34730818,0.00016711,2]
[329530075,1718418633872,-150.0,0.00016711,2]
[329530076,1718418633883,-150.0,0.00016711,2]
[329530077,1718418633901,-300.0,0.00016711,2]
[329530078,1718418633912,-77.46229134,0.00016712,2]
[329530079,1718418633936,-935.98664096,0.00016712,2]
[329530080,1718418633968,-1854.6110677,0.00016712,2]
[329530081,1718418633981,-179.82,0.00016712,2]
[329530082,1718418633997,-243.99,0.00017132,2]
[329530083,1718418634014,-210.0,0.00018382,2]
[329530084,1718418634025,-210.0,0.00018382,2]
[329530085,1718418634052,-166.78290587,0.00018937,2]
[329530086,1718418634081,-155.0,0.00018937,2]
[329530087,1718418634124,-336.90283323,0.00018937,2]
[329530088,1718418634148,-644.56825444,0.00018938,2]
[329530089,1718418634161,-1820.51356871,0.00018939,2]
[329530090,1718418634178,-1671.1711544,0.00018939,2]
[329530091,1718418634215,-562.43544538,0.00018939,2]
[329530092,1718418634240,-1094.89027509,0.00018939,2]
[329530093,1718418634306,-18115.54955642,0.00018939,2]
[329530094,1718418634319,-46.34717788,0.00018955,2]
[329530095,1718418634375,-203.65282212,0.00018955,2]
[329530096,1718418634388,-166.85,0.00018973,2]
[329530097,1718418634402,-273.71,0.00019008,2]
[329530098,1718418634414,-200.0,0.00019044,2]
[329530099,1718418634427,-515.17,0.00019077,2]
[329530100,1718418634463,-198.31,0.00019136,2]
[329530101,1718418634478,-200.0,0.00019136,2]
[329530102,1718418634490,-243.99,0.00019396,2]
[329530103,1718418634504,-168.07,0.00019685,2]
[329530104,1718418634517,-253.87971126,0.00019696,2]
[329530105,1718418634534,-6269.45372724,0.0002,2]
[329530106,1718418634561,-155.0,0.0002,2]
[329530107,1718418634575,-226.79813277,0.000201,2]
[329530108,1718418634588,-293.0,0.00020221,2]
[329530109,1718418634609,-292.83,0.0002031,2]
[329530110,1718418634624,-292.83,0.00020316,2]
[329530111,1718418634664,-292.83,0.00020321,2]
[329530112,1718418634679,-292.83,0.00020326,2]
[329530113,1718418634706,-292.83,0.00020332,2]
[329530114,1718418634718,-292.83,0.00020337,2]
[329530115,1718418634730,-292.83,0.00020342,2]
[329530116,1718418634741,-292.83,0.00020348,2]
[329530117,1718418634755,-292.83,0.00020353,2]
[329530118,1718418634792,-292.83,0.00020359,2]
[329530119,1718418634808,-292.83,0.00020364,2]
[329530120,1718418634823,-292.83,0.00020369,2]
[329530121,1718418634845,-292.83,0.00020375,2]
[329530122,1718418634864,-908.52,0.00020377,2]
[329530123,1718418634879,-292.83,0.0002038,2]
[329530124,1718418634892,-292.83,0.00020385,2]
[329530125,1718418634905,-292.83,0.00020391,2]
[329530126,1718418634917,-292.83,0.00020396,2]
[329530127,1718418634927,-292.83,0.00020401,2]
[329530128,1718418634939,-292.83,0.00020407,2]
[329530129,1718418634951,-292.83,0.00020412,2]
[329530130,1718418634964,-168.07,0.00020497,2]
[329530131,1718418634982,-184.73,0.00020523,2]
[329530133,1718418634996,-1250.0,0.00021,2]
[329530135,1718418635008,-168.07,0.0002131,2]
[329530136,1718418635019,-3088.0,0.0002137,2]
[329530137,1718418635030,-273.71,0.00021384,2]
[329530138,1718418635041,-243.99,0.0002166,2]
[329530139,1718418635054,-1387.22206956,0.00021717,2]
[329530140,1718418635066,-1387.22206956,0.00021767,2]
[329530141,1718418635077,-515.17,0.00021817,2]
[329530142,1718418635094,-4761.37778326,0.00021817,2]
[329530143,1718418635108,-5238.62221674,0.00021817,2]
[329530144,1718418635119,-109221.15623968,0.00021817,2]
[329530145,1718418635132,-12069.85646032,0.00021817,2]
[329530146,1718418635149,-8140.7833,0.00021817,2]
[329530147,1718418635164,-1387.22206956,0.00021817,2]
[329530148,1718418635177,-938.0,0.000219,2]
[329530149,1718418635189,-2139.28164896,0.00021911,2]
[329530150,1718418635212,-264.37658424,0.00021911,2]
[329530151,1718418635242,-496.346633,0.00021911,2]
[329530152,1718418635276,-730.35536255,0.00021911,2]
[329530153,1718418635304,-4156.05408246,0.00021911,2]
[329530154,1718418635315,-3910.22766247,0.00021912,2]
[329530155,1718418635327,-414.78224836,0.00021913,2]
[329530156,1718418635338,-156.12853602,0.00021913,2]
[329530157,1718418635351,-188.99573658,0.00021913,2]
[329530158,1718418635381,-1793.60284664,0.00021913,2]
[329530159,1718418635404,-1585.90546525,0.00021913,2]
[329530160,1718418636097,-17181.81684238,0.00021913,2]
[329530161,1718418636119,-10569.64300439,0.00021914,2]